Cogmind - Beta 14 @@@ ROGUE MODE // 2024.11.25 @ 23:41:32 Player: SubVirus Result: Destroyed by EMP Trap Performance ------------- Evolutions (1) 500 Regions Visited (2) 400 Robots Destroyed (42) 210 Value Destroyed (880) 880 Prototype IDs (4) 80 Alien Tech Used (0) 0 Bonus (0) 0 TOTAL SCORE: 2070 Bonus ------- None Cogmind --------- Core Integrity 0/400 Matter 217/300 Energy 160/160 System Corruption 7% Temperature Cool (7) Movement Flying (200) Ox2 Location -9/Materials Parts ------- > --- POWER (2) -------- Light Nuclear Core > --- PROPULSION (2) --- Flight Unit > --- UTILITY (2) ------ Insulated Plating > --- WEAPON (3) ------- Heavy Mace > --- INVENTORY (5) ---- (None) Peak State ------------ > --- POWER ------------ (None) > --- PROPULSION ------- Cesium-ion Thruster Cesium-ion Thruster > --- UTILITY ---------- Insulated Plating > --- WEAPON ----------- Light Assault Rifle Heavy Mace Heavy Mace > --- INVENTORY -------- Flight Unit [Rating: 16] Favorites ----------- Power Reinforced Ion Engine Engine Reinforced Ion Engine Power Core Light Nuclear Core Propulsion Wheel Wheel Wheel Flight Unit Cesium-ion Thruster Utility Sensor Array Device Sensor Array Processor Visual Processing Unit Protection Insulated Plating Weapon Light Assault Rifle Energy Gun Spread Laser Energy Cannon Particle Cannon Ballistic Gun Light Assault Rifle Launcher Grenade Launcher Impact Weapon Heavy Mace Build | -11 -10 -9 ------- Run | Yrd Mat Mat Slots Evolved 2 | . . 2 Power 1 | . . 1 Propulsion . | . . . Utility . | . . . Weapon 1 | . . 1 Parts Attached 32 | 7 9 16 Power 4 | 1 1 2 Engine 3 | 1 1 1 Core 1 | . . 1 Reactor . | . . . Propulsion 9 | 2 4 3 Treads . | . . . Leg . | . . . Wheel 6 | 2 4 . Hover . | . . . Flight 3 | . . 3 Utility 6 | 2 2 2 Device 4 | 2 1 1 Storage . | . . . Processor 1 | . 1 . Hackware . | . . . Protection 1 | . . 1 Artifact . | . . . Weapon 13 | 2 2 9 Energy Gun 4 | . 2 2 Energy Cannon 2 | . . 2 Ballistic Gun 3 | 2 . 1 Ballistic Cannon . | . . . Launcher 1 | . . 1 Special Weapon . | . . . Impact Weapon 3 | . . 3 Slashing Weapon . | . . . Piercing Weapon . | . . . Special Melee Weapon . | . . . Unidentified Prototypes . | . . . Corrupted Parts 1 | . . 1 System Corruption 6 | . . 6 Parts Lost 19 | . 5 14 Power 3 | . 1 2 Propulsion 6 | . 2 4 Utility 4 | . 2 2 Weapon 6 | . . 6 Highest Loss Streak 11 | . 2 11 To Critical Strikes . | . . . Average Slot Usage (%) 88 | . 92 79 Engine 13 | . 13 15 Wheel 22 | . 25 15 Device 15 | . 15 14 Processor 5 | . 7 1 Energy Gun 6 | . 2 13 Energy Cannon 3 | . . 10 Ballistic Gun 17 | . 25 1 Peak Build Rating 16 | 9 11 16 Average Rating 8 | 5 8 10 On Entrance 6 | . 9 11 Naked Turns 21 | . . 21 Heaviest Build 27 | 7 17 27 Greatest Support 26 | 20 26 26 Greatest Overweight (x) 4 | . 1 4 Average Overweight (x) . | . . . Largest Inventory Capacity 5 | 5 5 5 Average Capacity 5 | 5 5 5 Most Carried 4 | 3 4 4 Average Carried 1 | 1 2 1 Final Capacity 5 | 5 5 5 Final Carried 3 | 1 3 . Class Distribution -------------------- 78% | Mutant 17% | Skirmisher Dominant Class ---------------- Mutant | -10/Materials Skirmisher | -9/Materials Resources | -11 -10 -9 ----------- Run | Yrd Mat Mat Matter Collected 652 | 308 204 140 Remotely . | . . . Salvage Created 1090 | 169 484 437 Parts 95 | 16 33 46 Haulers Intercepted . | . . . Recyclers Shooed . | . . . Parts Field Recycled . | . . . Retrieved Matter . | . . . Parts Self-Destructed . | . . . Prevented . | . . . Kills | -11 -10 -9 ------- Run | Yrd Mat Mat Combat Hostiles Destroyed 26 | 1 11 14 Melee 2 | . . 2 Guns 19 | 1 11 7 Cannons 2 | . . 2 AOE 3 | . . 3 Classes Destroyed 8 | 3 3 2 Worker 3 | 1 2 . Builder 3 | . . 3 Tunneler 4 | 4 . . Operator 1 | . 1 . Watcher 5 | . 3 2 Swarmer 9 | . 3 6 Grunt 16 | 1 8 7 Sentry 1 | . . 1 Best Kill Streak 6 | 2 4 6 Combat Bots Only 3 | 1 3 3 Max Kills in Single Turn 2 | 1 1 2 Gunslinging . | . . . Exploded 2 | . . 2 Melee 1 | . . 1 Uniques/NPCs Destroyed . | . . . Combat | -11 -10 -9 -------- Run | Yrd Mat Mat Hostile Shots Fired 241 | 3 76 162 Missed 72 | 1 30 41 Damage Taken 1910 | 22 588 1300 Core 591 | 12 168 411 Absorbed by Shields . | . . . Ignored by Resistances 3 | . . 3 Regen/Repaired (Parts) 68 | . 68 . Core Remaining (%) 61 | 95 28 . Volleys Fired 143 | 23 70 50 Largest 3 | 2 2 3 Hottest 192 | 40 40 192 Shots Fired 277 | 46 140 91 Gun 238 | 46 140 52 Cannon 32 | . . 32 Launcher 7 | . . 7 Special . | . . . Kinetic 204 | 46 140 18 Thermal 49 | . . 49 Explosive 7 | . . 7 Electromagnetic 17 | . . 17 Robot Hit Streak 9 | 5 9 9 Robot Miss Streak 4 | 3 4 4 Penetration Max . | . . . Secondary Targets 4 | . 4 . Max Gunslinging Chain 1 | . 1 . Shots Hit Robots 161 | 25 87 49 Core Hits 87 | 11 41 35 Critical Kills 1 | . 1 . Critical Parts Destroyed 1 | . . 1 Critical Strikes 2 | . 1 1 Destroy 1 | . 1 . Smash 1 | . . 1 Melee Attacks 5 | . . 5 Impact 5 | . . 5 Slashing . | . . . Piercing . | . . . Sneak Attacks . | . . . Combat Hostiles . | . . . Follow-up Attacks 1 | . . 1 Damage Inflicted 2017 | 206 723 1088 Guns 1319 | 206 723 390 Cannons 141 | . . 141 Explosions 483 | . . 483 Melee 74 | . . 74 Ramming . | . . . Kinetic 1026 | 206 723 97 Thermal 341 | . . 341 Explosive 448 | . . 448 Electromagnetic 128 | . . 128 Impact 74 | . . 74 Slashing . | . . . Piercing . | . . . Highest Corruption 6 | . . 6 Average Corruption 6 | . . 6 Corruption Purged . | . . . Corruption Blocked . | . . . Effects 1 | . . 1 Message Errors 1 | . . 1 Overload Shots . | . . . Overflow Damage 58 | . . 58 Projectiles . | . . . Explosions 8 | . . 8 Melee 50 | . . 50 Knockbacks . | . . . Impact . | . . . Kinetic . | . . . Secondary . | . . . Self-Inflicted Damage 85 | . . 85 Shots 5 | . . 5 Rammed . | . . . Targets Rammed . | . . . Kicked . | . . . Crushed . | . . . Highest Temperature 630 | 6 55 630 Average Temperature 126 | 6 21 172 Received Heat Transfer 588 | 12 267 309 Effects 9 | . . 9 Shutdowns 1 | . . 1 Energy Bleed 1 | . . 1 Interference 3 | . . 3 Short Circuit 1 | . . 1 Damage (minor) 2 | . . 2 Damage (core) 1 | . . 1 Siege Activations . | . . . Robots Corrupted . | . . . Combat Hostiles . | . . . Parts Fried 1 | . . 1 Impact Corruptions 1 | . . 1 Robots Melted . | . . . Combat Hostiles . | . . . Parts Melted . | . . . Heat Transferred 553 | . . 553 Parts Sabotaged . | . . . Parts Stolen . | . . . Parts Stripped . | . . . Power Chain Reactions 1 | . . 1 Alert | -11 -10 -9 ------- Run | Yrd Mat Mat Peak Influence 323 | 45 198 323 Initial 29 | . 29 . Average 100 | 23 77 193 Maximum Alert Level 1 | . . 1 Low Security (%) 85 | 100 100 44 Level 1 14 | . . 55 Level 2 . | . . . Level 3 . | . . . Level 4 . | . . . Level 5 . | . . . High Security . | . . . Max Security . | . . . Squads Dispatched 7 | . 3 4 Investigation 6 | . 2 4 Extermination . | . . . Reinforcement 1 | . 1 . Assault . | . . . Garrison . | . . . Intercept . | . . . Searches Triggered . | . . . Construction Impeded . | . . . Haulers Reinforced . | . . . Active Scanning Responses . | . . . Cargo Convoy Interrupts . | . . . Stealth | -11 -10 -9 --------- Run | Yrd Mat Mat Distress Signals 2 | . . 2 Communications Jammed . | . . . Distress Signals . | . . . Times Spotted 45 | 1 22 22 Peak Tracking Total 6 | 1 3 6 Tactical Retreats 3 | . . 3 Traps | -11 -10 -9 ------- Run | Yrd Mat Mat Traps Triggered 2 | . 1 1 Indirectly . | . . . Trap Hack Attempts . | . . . Triggered . | . . . Disarmed . | . . . Reprogrammed . | . . . Reused . | . . . Traps Extracted . | . . . Installed . | . . . Triggered . | . . . Machines | -11 -10 -9 ---------- Run | Yrd Mat Mat Machines Disabled 2 | . . 2 Max in Single Turn 1 | . . 1 Machines Repaired . | . . . Machines Dismantled . | . . . Machines Sabotaged . | . . . Overloaded Fab Kills . | . . . Hacking | -11 -10 -9 --------- Run | Yrd Mat Mat Machines Accessed 11 | . 6 5 Terminals 8 | . 3 5 Fabricators . | . . . Repair Stations 1 | . 1 . Recycling Units 2 | . 2 . Scanalyzers . | . . . Garrison Access . | . . . Total Hacks 37 | . 19 18 Successful 25 | . 12 13 Failed 12 | . 7 5 Catastrophic 1 | . . 1 Database Lockouts . | . . . Manual . | . . . Terminals 30 | . 12 18 Fabricators . | . . . Repair Stations 5 | . 5 . Recycling Units 2 | . 2 . Scanalyzers . | . . . Garrison Access . | . . . Terminal Hacks 21 | . 8 13 Record 11 | . 2 9 Prototype ID Bank 2 | . 1 1 Emergency Access Points 1 | . . 1 Alert Level 1 | . 1 . Locate Traps 2 | . 1 1 Patrol Status 1 | . . 1 Hauler Manifests 1 | . 1 . Zone Layout 2 | . 2 . Fabricator Hacks . | . . . Repair Station Hacks 2 | . 2 . Scan Component 1 | . 1 . Repair 1 | . 1 . Recycling Unit Hacks 2 | . 2 . Report Inventory 2 | . 2 . Scanalyzer . | . . . Garrison Access Hacks . | . . . Unauthorized Hacks . | . . . Terminals . | . . . Fabricators . | . . . Repair Stations . | . . . Recycling Units . | . . . Scanalyzers . | . . . Garrison Access . | . . . Data Cores Recovered 1 | . 1 . Used . | . . . Hacking Detections 9 | . 4 5 Full Trace Events 9 | . 4 5 Feedback Events . | . . . Feedback Blocked . | . . . Robot Schematics Acquired . | . . . Robots Built . | . . . Authchips . | . . . Time . | . . . Total Robot Build Rating . | . . . Part Schematics Acquired . | . . . Parts Built . | . . . Authchips . | . . . Time . | . . . Total Part Build Rating . | . . . Parts Repaired 1 | . 1 . Time 26 | . 26 . Parts Recycled . | . . . Recycled Matter . | . . . Retrieved Matter . | . . . Retrieved Components . | . . . Parts Scanalyzed . | . . . Part Schematics Acquired . | . . . Parts Damaged . | . . . Bothacking | -11 -10 -9 ------------ Run | Yrd Mat Mat Used RIF Installer . | . . . Robots Hacked . | . . . Non-combat . | . . . Combat . | . . . Robot Hacks Applied . | . . . Relay Couplers Released . | . . . Fabnet Peak Effective % . | . . . Robots Rewired . | . . . Allies Hacked . | . . . Hacks Repelled . | . . . Allies | -11 -10 -9 -------- Run | Yrd Mat Mat Total Allies . | . . . Largest Group . | . . . Highest-Rated Group . | . . . Highest-Rated Ally . | . . . Total Orders . | . . . Ally Attacks . | . . . Total Damage . | . . . Kills . | . . . Allies Corrupted . | . . . Allies Melted . | . . . Intel | -11 -10 -9 ------- Run | Yrd Mat Mat Robot Analysis Total . | . . . Derelict Logs Recovered . | . . . Drone Launches . | . . . Drone Recoveries . | . . . Exploration | -11 -10 -9 ------------- Run | Yrd Mat Mat Turns Passed 2087 | 303 1233 551 Spaces Moved 1851 | 293 1150 408 Core 69 | 21 . 48 Treads . | . . . Legs . | . . . Wheels 1733 | 272 1150 311 Hover . | . . . Flight 49 | . . 49 Fastest Speed 32 | 50 80 32 Average Speed 88 | 77 89 94 Slowest Speed 250 | 80 100 250 Overloaded Moves . | . . . Propulsion Burnouts . | . . . Robots Hopped . | . . . Cave-ins Triggered . | . . . Exploration Rate (%) 44 | 7 93 32 Regions Visited 2 Branch Regions . Pre-discovered Areas . | . . . Known Exits Taken . | . . . Unknown Exits Taken 2 | 1 1 . Scrap Searched . | . . . Spaces Dug . | . . . Terrain Destroyed 28 | . . 28 Melee . | . . . Projectile . | . . . AOE 28 | . . 28 Terrain Rammed . | . . . Walls Destroyed . | . . . Machines Disabled . | . . . Actions | -11 -10 -9 --------- Run | Yrd Mat Mat Total 2073 | 330 1246 497 Wait 6 | . 6 . Move 1849 | 292 1149 408 Hop . | . . . Pick Up 31 | 8 10 13 Fast Attach . | . . . Attach 30 | 7 7 16 Detach 1 | . . 1 Swap 2 | . 2 . Drop 7 | . 2 5 Fire 143 | 23 70 50 Melee 4 | . . 4 Ram . | . . . Kick . | . . . Crush . | . . . Escape Stasis . | . . . Rewire . | . . . Trap . | . . . Miscellaneous . | . . . Route ------- -11/Scrapyard -10/Materials (discovered 4 exits: *Mat x2 / [*Min] / [*Sub]) -9/Materials History --------- Turn | Location | Event 2 | -11/Scrapyard | Met Revision 17 94 | -11/Scrapyard | Discovered new exit (range 8) 304 | -11/Scrapyard | Entered Materials 305 | -10/Materials | Build established: Mutant 349 | -10/Materials | Discovered new exit (range 16) 519 | -10/Materials | Discovered new exit (range 9) 665 | -10/Materials | Discovered new exit (range 18) 912 | -10/Materials | Discovered new exit (range 8) 1218 | -10/Materials | Core integrity fell below 50% 1445 | -10/Materials | Repaired Lgt. Assault Rifle? 1537 | -10/Materials | Entered another Materials area 1537 | -9/Materials | Evolved 2 slots: Power x1, Weapon x1 1825 | -9/Materials | Build established: Skirmisher 1944 | -9/Materials | Core integrity fell below 50% 2014 | -9/Materials | Lost 11 parts (2p2n2u5w) 2015 | -9/Materials | Core integrity fell below 20% 2088 | -9/Materials | Destroyed by EMP Trap Last Messages --------------- G-34 Mercenary destroyed. Acquired Corrupted Flight Unit. Acquired 24 matter. Acquired Lgt. Assault Rifle. R-06 Scavenger collects Lgt. Ion Engine. R-06 Scavenger collects Wheel. Cesium-ion Thruster destroyed. G-47 Trooper destroyed. Dropped Hvy. Mace. Acquired Lgt. Nuclear Core. Integrated Corrupted Flight Unit (+6). Complication: Energy sink damages Corrupted Flight Unit (-8). PIQGN#F,DXZVT&6VGLLQ Acquired 46 matter. Cesium-ion Thruster destroyed. Lgt. Assault Rifle destroyed. Triggered EMP Trap. A bubble of electromagnetic force engulfs the area. Map ----- +----------------------------------------------------+ | ?????????????????????????????????????????????????? | | ?????????????????????????????????????????????????? | | ?????????????????????????????????????????????????? | | ?????????????????????????????????????????????????? | | ?????????????????????????????????????????????????? | | ?????????? ????????????????????????????????????? | | ?????????? #???????????????????????????????????? | | ?????????? #???????????????????????????????????? | | ?????????? #???????????????????????????????????? | | ?????????? #???????????????????????????????????? | | ?????????? #???????????????????????????????????? | | ?????????? #???????????????????????????????????? | | ?????????# #???????????????????????????????????? | | ?????????# ###############?????????????????????? | | ?????????# ? #?????????????????????? | | ?????????# ? k #?????????????????????? | | ?????????# ?? #?????????????????????? | | ??######## ? #?????????????????????? | | ??# # % #?""??????????????????? | | ??# # """ """ """ #?"???????????????????? | | ??#]] + """ """ """ # ????????????????????? | | ??# ! # """ """ """ # ????????????????????? | | ??#[ # +?????????????????????? | | ###[ # #?????????????????????? | | #+###### ########### #?????????????????????? | | # #????# #?# T # @^#?????????????????????? | | # #????# #?# """ [ # #?????????????????????? | | # ###### #?# """ + #?????????????????????? | | # ! ### """ # #???+?????????????????? | | + + # #?????????????????????? | | # ########### #?????????????????????? | | ### ########?????????# #???+????##???????????? | | #?# #?????????????#### #?????? #???????????? | | #?# #????????????##! #???? #???????????? | | #?# #????????????#! tgg#?? #???????????? | | #####+####?????????#! #! #???????????? | | #?????????#! /=+% #???????????? | | """ """ ##????????#! =#[ #???????????? | | """"""""! #????????##! ### # #????? #????? | | """"" "% ##?????????###??# #? #???? #????? | | %==[#???????????????# #?###+#####??? % #????? | | T" ! = #???????????????# ##### ########% #????? | | [ #????######?????# #????? | | ###+######????# #?????# % #????? | | ?# %=#????????# #?????# % ##???? | | ?# #????????# #?????# ^ ??? | | ?# #????????# ####### ??? | | ?# ########## + ?? | | ?# # # # == % ""???? | | ?# #""" # # ########## #### "????? | +----------------------------------------------------+ Best States ------------- Heat Dissipation 38 Energy Generation 17 Energy Capacity 415 Matter Stores 300 Matter Capacity 300 Sight Range 18 Robot Scan Range 14 Terrain Scan Range 16 Terrain Scan Density 10 Armor Coverage 150 Resistance: EM 15 Evasion (%) 63 Item Schematics ----------------- None Robot Schematics ------------------ None Fabricated ------------ Nothing Alien Tech Used ----------------- None Achievements -------------- Let's See Who's Tougher Librarian Novice Programmer Shopping List Challenges ------------ None Game ------ Seed ProcessingTrapSabre Manual? 0 Play Time 00:42:38 Cumulative 1.8 hours Start 2024.11.25 @ 22:58:00 End 2024.11.25 @ 23:41:32 Sessions 1 Manual Loads 0 Difficulty Rogue Special Mode None Game No. 2 Rogue 2 Adventurer 0 Explorer 0 Win Type - Total 0 Types 0/0/0/0/0/0/0/0/0 Lore% 1 Gallery% 2 Achievement% 3 Wizard Run 0 Options --------- Layout 1 ASCII 0 Keyboard 0 Movement Mouse Keybinds 0 Fullscreen 1 Font 24/Crisp Map View 50x35 Zoom Use 15% Tactical HUD 0 Map Filters NONE Filters NONE Steam 1 RUN: bd10469a-4426-418e-bf28-7c3b8e4a4030